bitfinex/quotes_ETHUSD_20250216
["timestamp","ask_amount","ask_price","bid_price","bid_amount"]
[1739746892230,0.3,2664.1,2663.8,3.75394]
[1739746892468,3.75457,2663.5,2662.3,4.58225]
[1739746892765,3.85543,2662.9,2662.3,0.8261]
[1739746892940,0.1,2662.6,2661.7,4.58309]
[1739746893141,0.1,2662.6,2662.0,3.75647]
[1739746893341,0.1,2662.4,2662.1,3.75641]
[1739746893641,0.1,2662.2,2661.7,4.583]
[1739746893837,0.1,2662.2,2661.8,3.75684]
[1739746894264,0.3,2662.2,2661.7,3.75698]
[1739746894782,0.3,2662.6,2662.4,3.75595]
[1739746895137,0.1,2662.6,2662.4,3.75595]
[1739746895840,0.1,2662.4,2661.8,3.75674]
[1739746896053,0.1,2662.0,2661.1,0.8261]
[1739746896285,0.1,2662.0,2661.6,3.75709]
[1739746896442,0.1,2661.3,2660.8,3.75825]
[1739746896642,0.1,2661.3,2660.9,3.75812]
[1739746896832,3.75812,2660.9,2660.5,0.8261]
[1739746897040,0.3,2661.1,2660.5,3.75856]
[1739746897235,0.1,2660.8,2660.5,3.75856]
[1739746897580,0.3,2661.4,2659.8,3.75957]
[1739746897727,0.1,2661.1,2660.9,3.75799]
[1739746898088,0.3,2660.7,2659.9,0.375957]
[1739746898235,0.1,2660.7,2659.7,3.0]
[1739746898430,0.3,2660.9,2659.8,0.03756419]
[1739746898681,0.1,2660.2,2659.9,3.75943]
[1739746899067,0.1,2660.2,2660.1,3.75925]
[1739746899270,0.1,2660.2,2659.9,3.75943]
[1739746899580,0.1,2660.2,2658.8,4.52666839]
[1739746899581,0.1,2659.8,2658.6,0.753]
[1739746899740,0.1,2659.8,2659.7,3.75982]
[1739746900697,0.3,2659.6,2659.1,3.76064]
[1739746900877,0.3,2659.6,2658.3,3.76171]
[1739746901201,0.3,2659.6,2659.4,3.76016]
[1739746901350,0.1,2659.3,2658.4,3.7616]
[1739746901550,0.1,2659.3,2659.0,3.7608]
[1739746901747,0.3,2659.0,2658.1,3.76202]
[1739746901996,0.3,2659.2,2658.1,4.217832]
[1739746902152,0.3,2659.2,2659.1,3.76067]
[1739746902153,0.2,2659.2,2659.1,3.76067]
[1739746902507,3.75915,2660.2,2658.9,3.76082]
[1739746902508,0.2,2659.6,2659.5,3.7601]
[1739746902793,5.56256295,2660.7,2660.6,3.75855]
[1739746902992,2.95e-06,2660.7,2660.6,6.75855]
[1739746903366,0.1,2661.5,2661.4,3.75742]
[1739746903534,0.1,2661.8,2661.7,3.75699]
[1739746903691,0.1,2662.3,2661.9,6.75671]
[1739746903876,0.1,2662.9,2662.6,3.75572]
[1739746904211,0.1,2662.9,2662.7,3.75555]
[1739746904376,0.1,2662.9,2662.8,3.75544]
[1739746904575,0.1,2662.7,2661.5,4.83528685]
[1739746904807,0.1,2662.8,2662.7,3.75558]
[1739746905130,3.75443,2663.6,2662.7,3.75558]
[1739746905131,0.1,2663.0,2662.7,6.75558]
[1739746905333,0.1,2662.8,2662.7,6.75558]
[1739746905833,0.1,2662.8,2662.7,3.75558]
[1739746905969,11.68349816,2663.1,2663.0,6.75516]
[1739746906174,2.19594816,2663.1,2663.0,7.430676]
[1739746906469,0.1,2664.3,2663.0,0.675516]
[1739746906678,0.1,2664.3,2663.2,3.0]
[1739746906873,0.1,2664.3,2664.2,3.75347]
[1739746907075,0.1,2664.4,2664.2,3.75347]
[1739746907318,0.1,2664.4,2664.1,2.99007227]
[1739746907528,0.1,2664.4,2664.3,3.75333]
[1739746907703,0.1,2664.8,2663.9,3.75389]
[1739746908009,0.1,2664.8,2663.5,3.75441]
[1739746908010,0.1,2664.2,2663.5,3.75441]
[1739746908205,0.1,2663.6,2663.5,3.75441]
[1739746908394,0.1,2663.0,2662.7,3.75558]
[1739746908593,0.1,2663.0,2662.5,3.75583]
[1739746908816,0.1,2662.8,2662.7,3.75555]
[1739746909177,3.7542,2663.7,2662.7,3.75555]
[1739746909178,0.1,2663.4,2663.3,3.75474]
[1739746909378,0.1,2663.4,2662.3,0.55]
[1739746909379,0.1,2663.4,2663.1,3.75496]
[1739746909627,0.1,2663.4,2662.5,3.75576]
[1739746909827,0.1,2663.6,2663.3,3.75474]
[1739746909994,0.1,2663.6,2663.5,3.75445]
[1739746910198,3.75206,2665.2,2664.2,3.75337]
[1739746910513,3.75206,2665.2,2663.3,0.7747]
[1739746910514,3.75247,2665.0,2664.0,3.75372]
[1739746910722,3.75268,2664.8,2663.9,3.75387]
[1739746911008,3.75302,2664.6,2663.7,3.75415]
[1739746911174,0.8025,2664.1,2661.8,0.73336565]
[1739746911375,3.75482,2663.3,2662.5,3.75585]
[1739746911679,3.80730055,2663.4,2662.6,3.75559]
[1739746911877,4.56346661,2663.4,2662.7,3.75554]
[1739746912429,4.56346661,2663.4,2662.4,3.0]
[1739746912573,4.56346661,2663.4,2662.7,3.75555]
[1739746912907,3.80730055,2663.4,2662.6,3.75572]
[1739746913075,3.80730055,2663.4,2663.2,3.75478]
[1739746913275,3.80730055,2663.4,2663.3,3.75474]
[1739746913987,3.75343,2664.3,2663.5,3.75437]
[1739746914306,0.545,2664.4,2663.7,3.75416]
[1739746914507,0.545,2664.4,2663.2,3.75484]
[1739746914508,3.75376,2664.0,2663.2,3.75484]
[1739746914724,3.75429,2663.7,2662.3,0.7747]
[1739746915006,3.75544,2662.8,2662.1,3.75632]
[1739746915206,0.04695017,2662.7,2661.7,0.7747]
[1739746915410,3.75516,2663.0,2662.1,3.75642]
[1739746915727,3.75516,2663.0,2660.9,4.83528685]
[1739746915728,0.7688,2662.7,2661.2,3.7577]
[1739746915925,3.75664,2662.0,2661.1,3.75774]
[1739746916231,0.542,2662.0,2660.6,3.75846]
[1739746916375,0.7688,2661.5,2660.8,3.75825]
[1739746916575,3.75794,2661.1,2660.0,3.75939]
[1739746916830,0.04697609,2661.0,2660.0,3.75934]
[1739746917009,0.55,2661.4,2660.4,3.75881]
[1739746917208,0.55,2661.4,2659.3,0.7837]
[1739746917209,3.75848,2660.7,2659.3,0.7837]
[1739746917525,3.75848,2660.7,2659.8,3.7596]
[1739746917526,0.04699141,2660.6,2659.8,3.7596]
[1739746917729,3.75828,2660.8,2659.9,3.75941]
[1739746917891,3.75855,2660.6,2659.7,3.75979]
[1739746918090,3.75839,2660.8,2659.9,3.75948]
[1739746918296,0.375839,2660.8,2659.5,3.76004]
[1739746918580,0.04699262,2660.7,2658.8,4.54465]
[1739746918881,0.7688,2661.0,2659.4,3.55]
[1739746919189,0.7688,2661.6,2660.0,3.55]
[1739746919399,4.41020085,2662.7,2662.3,3.75615]
[1739746920033,4.41020085,2662.7,2661.2,0.7837]
[1739746920231,4.41020085,2662.7,2661.9,3.75659]
[1739746920491,4.41020085,2662.7,2661.2,0.7837]
[1739746920634,0.0469488,2662.6,2662.0,3.75644]
[1739746920837,4.41020085,2662.7,2661.7,3.75694]
[1739746921049,4.41020085,2662.7,2661.7,3.75691]
[1739746921263,8.16590085,2662.7,2661.7,3.75691]
[1739746921575,8.16590085,2662.7,2661.2,6.75768]
[1739746921576,1.3188,2662.9,2662.0,3.75652]
[1739746921786,0.7688,2662.9,2661.3,3.0]
[1739746921937,0.7688,2662.9,2662.0,3.75646]
[1739746922259,0.7688,2662.0,2660.1,0.7837]
[1739746922580,0.55,2661.6,2660.0,3.75933]
[1739746922896,3.75826,2660.8,2659.3,3.76037]
[1739746923168,0.375826,2660.7,2659.3,3.0]
[1739746923329,0.7688,2661.0,2659.8,3.0]
[1739746923533,0.7688,2661.7,2660.7,3.75833]
[1739746923733,0.7688,2661.7,2660.5,3.75869]
[1739746923963,0.7688,2661.7,2660.6,3.75845]
[1739746924195,0.55,2661.5,2659.5,0.7837]
[1739746924496,1.52387892,2660.1,2659.5,0.7837]
[1739746924807,4.40977199,2661.5,2661.2,3.7577]
[1739746924974,4.40977199,2661.5,2661.4,3.75742]
[1739746925487,4.40977199,2661.5,2661.0,3.75795]
[1739746925693,4.40977199,2661.5,2661.1,3.75773]
[1739746925839,4.40977199,2661.5,2661.0,3.0]
[1739746926047,0.0469662,2661.4,2660.6,4.54211]
[1739746926250,0.0469662,2661.4,2660.3,3.75892]
[1739746926455,3.75748,2661.4,2660.6,3.75843]
[1739746926673,3.75748,2661.4,2660.7,3.0]
[1739746926838,3.75781,2661.2,2660.7,3.0]
[1739746927045,3.7576,2661.3,2660.6,3.0]
[1739746927302,8.16710199,2661.5,2660.6,3.0]
[1739746927510,8.16710199,2661.5,2660.6,0.675857]
[1739746927511,5.67049209,2661.5,2660.6,0.675857]
[1739746927646,5.67049209,2661.5,2661.4,3.75742]
[1739746928003,5.67049209,2661.5,2661.4,6.75742]
[1739746929393,5.67049209,2661.5,2661.4,3.0]
[1739746929704,5.67049209,2661.5,2660.4,3.75883]
[1739746929882,5.67049209,2661.5,2661.1,3.75782]
[1739746930192,5.67049209,2661.5,2661.2,3.75759]
[1739746930391,5.67049209,2661.5,2661.4,3.75742]
[1739746930593,5.67049209,2661.5,2661.4,6.75742]
[1739746930891,0.7518,2663.1,2662.4,3.75598]
[1739746931094,0.7518,2663.1,2662.1,3.0]
[1739746931295,3.75593,2662.5,2661.6,3.75713]
[1739746931792,0.375593,2662.5,2660.7,0.8223]
[1739746931991,3.75703,2661.7,2660.9,3.758]
[1739746932196,3.75703,2661.7,2660.8,3.0]
[1739746932403,3.75656,2662.1,2661.0,3.0]
[1739746932605,0.7518,2662.4,2661.7,3.75694]
[1739746932803,4.50784,2662.4,2661.7,3.75694]
[1739746932980,3.7563,2662.2,2661.6,3.0]
[1739746933183,3.75616,2662.3,2661.6,6.75708]
[1739746933383,3.75616,2662.3,2661.6,3.0]
[1739746933690,3.75624,2662.3,2661.6,3.0]
[1739746933895,3.7571,2661.7,2660.9,3.75801]
[1739746934074,3.7571,2661.7,2661.0,3.75796]
[1739746934269,3.75632,2662.2,2661.1,3.0]
[1739746934607,0.7518,2662.4,2661.8,3.75685]
[1739746934608,4.50781,2662.4,2661.8,3.75685]
[1739746934904,4.50781,2662.4,2661.6,3.0]
[1739746934905,3.75615,2662.3,2661.6,3.0]
[1739746935102,4.50785,2662.4,2659.7,0.524]
[1739746935406,4.50785,2662.4,2661.7,3.75687]
[1739746935604,0.7518,2662.4,2661.0,0.55]
[1739746935804,0.7518,2662.9,2662.3,3.75601]
[1739746936106,0.7518,2662.9,2661.1,0.355]
[1739746936303,3.75621,2662.3,2661.1,0.355]
[1739746936507,3.75581,2662.6,2661.9,3.75666]
[1739746936675,3.75575,2662.6,2661.9,3.75664]
[1739746936868,3.75575,2662.6,2661.9,3.75662]
[1739746937108,3.75553,2662.8,2662.1,3.75634]
[1739746937409,3.75553,2662.8,2662.0,3.0]
[1739746937790,3.75574,2662.6,2662.0,3.0]
[1739746937991,3.75574,2662.6,2661.9,3.0]
[1739746938186,3.756,2662.4,2661.8,3.75675]
[1739746938388,3.75558,2662.7,2661.3,3.75756]
[1739746938590,0.7518,2663.8,2662.9,3.75522]
[1739746938794,0.7518,2663.8,2663.3,3.75462]
[1739746939178,4.50583,2663.8,2663.1,3.75496]
[1739746939511,4.50583,2663.8,2662.7,6.75555]
[1739746939512,3.75475,2663.3,2662.7,6.75555]
[1739746939880,0.7518,2663.8,2662.7,1.133367]
[1739746940100,0.7518,2663.8,2663.2,3.75483]
[1739746940413,0.7518,2663.8,2663.1,3.755]
[1739746940600,0.04693195,2664.9,2662.6,3.55]
[1739746940800,3.75413,2663.8,2663.1,3.75499]
[1739746941002,3.75413,2663.8,2663.1,3.75493]
[1739746941003,7.50828,2663.8,2663.1,3.75493]
[1739746941189,7.50828,2663.8,2662.1,0.8223]
[1739746941190,0.79872868,2663.7,2662.1,0.8223]
[1739746941390,2.53263059,2662.6,2662.1,0.8223]
[1739746941589,3.7561,2662.4,2661.7,3.75699]
[1739746941795,3.7561,2662.4,2661.8,3.75682]
[1739746941985,3.80284487,2662.5,2661.7,3.7569]
[1739746942185,3.75601,2662.4,2661.7,3.75688]
[1739746942383,0.04695488,2662.3,2661.1,0.8223]
[1739746942588,1.3018,2662.2,2660.5,0.8223]
[1739746942786,1.3018,2662.2,2660.0,4.58157]
[1739746942787,0.55,2662.0,2660.0,4.58157]
[1739746943011,0.7518,2661.8,2660.2,3.75906]
[1739746943181,3.75806,2661.0,2660.2,3.0]
[1739746943395,0.04697519,2660.9,2660.0,0.8223]
[1739746943593,0.7518,2660.9,2660.0,3.75939]
[1739746943794,0.7518,2660.9,2659.7,0.82223853]
[1739746944006,0.7518,2660.9,2660.8,3.75826]
[1739746944207,0.7518,2661.5,2660.9,3.75798]
[1739746944509,1.202694,2661.5,2659.4,5.65758685]
[1739746944706,3.75815,2660.9,2659.4,0.8223]
[1739746944915,3.75815,2660.9,2660.2,3.7591]
[1739746945126,3.75842,2660.7,2659.4,0.8223]
[1739746945414,3.82702527,2660.8,2659.5,3.7601]
[1739746945632,3.82702527,2660.8,2660.7,3.0]
[1739746945801,3.82702527,2660.8,2660.1,3.75924]
[1739746945990,3.82702527,2660.8,2660.4,3.0]
[1739746946190,3.82702527,2660.8,2659.7,3.75982]
[1739746946191,3.82702527,2660.8,2660.7,3.7584]
[1739746946402,3.82702527,2660.8,2660.7,6.7584]
[1739746946603,3.82702527,2660.8,2660.7,3.0]
[1739746946815,3.82702527,2660.8,2660.1,3.75921]
[1739746947123,7.58530527,2660.8,2659.9,3.75941]
[1739746947423,3.82702527,2660.8,2660.2,3.7591]
[1739746947613,3.82702527,2660.8,2660.0,6.75937]
[1739746947614,0.7518,2660.6,2659.4,0.8223]
[1739746947815,0.55,2660.4,2659.3,0.005]
[1739746948003,3.75918,2660.2,2659.3,0.005]
[1739746948193,0.51073417,2660.4,2659.3,0.005]
[1739746948391,3.75887,2660.4,2659.5,3.76006]
[1739746948596,3.75922,2660.2,2659.6,3.0]
[1739746949318,3.75927,2660.1,2659.5,3.76006]
[1739746949631,3.75927,2660.1,2659.3,0.005]
[1739746949632,0.7518,2659.5,2659.3,0.005]
[1739746950003,3.75917,2660.2,2659.3,0.005]
[1739746950004,0.7518,2660.0,2659.3,0.005]
[1739746950208,0.7518,2660.6,2659.3,0.005]
[1739746950525,0.7518,2660.6,2660.5,3.75869]
[1739746950724,4.4313135,2660.8,2660.6,3.75854]
[1739746950929,4.4313135,2660.8,2660.7,3.7584]
[1739746951092,0.7518,2662.1,2660.8,3.0]
[1739746951293,0.7518,2662.1,2661.4,3.75737]
[1739746951520,0.7518,2662.1,2660.6,0.751723]
[1739746951521,3.75707,2661.7,2660.9,3.75802]
[1739746951692,0.04697079,2662.0,2660.9,3.75806]
[1739746951894,3.75737,2661.5,2660.7,3.75835]
[1739746952093,0.45551408,2662.0,2660.6,0.751723]
[1739746952318,3.75697,2661.8,2661.0,3.75793]
[1739746952521,3.75657,2662.0,2661.3,3.75754]
[1739746952728,0.7518,2662.1,2661.5,3.75715]
[1739746952995,0.7518,2662.1,2660.1,0.8223]
[1739746952996,0.7518,2662.8,2661.9,3.7567]
[1739746953197,1.26498893,2662.7,2660.4,0.8223]
[1739746953396,3.75742,2661.4,2660.7,3.7583]
[1739746953642,0.7518,2662.0,2660.4,0.8223]
[1739746953930,1.218034,2662.7,2661.1,3.0]
[1739746953931,0.7518,2662.6,2661.1,3.0]
[1739746954131,11.42854001,2662.9,2662.1,3.75632]
[1739746954307,12.64657401,2662.9,2662.1,3.75632]
[1739746954632,0.7518,2662.7,2661.0,0.8223]
[1739746954833,3.75666,2662.0,2661.0,0.8223]
[1739746955157,0.0469648,2661.9,2660.9,6.75812]
[1739746955432,0.0469648,2661.9,2660.5,0.8223]
[1739746955433,3.75643,2662.1,2661.5,3.75721]
[1739746955602,3.75586,2662.5,2661.7,3.75685]
[1739746955798,3.75615,2662.3,2661.5,3.75722]
[1739746956118,3.75573,2662.6,2661.8,3.75681]
[1739746956321,0.7518,2662.7,2662.1,3.75631]
[1739746957033,3.75634,2662.2,2661.5,3.75721]
[1739746957239,3.75672,2661.9,2661.1,3.75781]
[1739746957415,0.55,2662.6,2661.4,3.75741]
[1739746957610,3.75621,2662.3,2661.6,3.75713]
[1739746957833,0.502,2662.5,2661.9,3.75661]
[1739746957834,3.75596,2662.5,2661.9,3.75661]
[1739746958025,3.75603,2662.4,2661.7,3.75688]
[1739746958211,0.751199,2662.4,2661.2,3.75762]
[1739746958418,3.75578,2662.6,2661.9,3.75669]
[1739746958616,0.7518,2662.7,2662.1,3.7563]
[1739746958809,4.5074,2662.7,2661.9,3.75666]
[1739746959009,4.5074,2662.7,2662.0,3.75657]
[1739746959221,0.7518,2662.7,2662.5,3.75581]
[1739746959408,0.7518,2662.7,2661.4,3.0]
[1739746959409,0.7518,2662.7,2662.2,3.75625]
[1739746960428,0.7518,2662.7,2662.4,3.75589]
[1739746960619,0.7518,2662.7,2662.2,3.75625]
[1739746961342,0.7518,2662.7,2662.2,3.7562]
[1739746961543,3.75596,2662.5,2661.2,0.7549]
[1739746961727,1.202525,2662.7,2662.2,3.7562]
[1739746961933,4.50739,2662.7,2662.0,3.75648]
[1739746962311,3.75582,2662.6,2662.0,3.75648]
[1739746962511,3.75586,2662.5,2661.2,0.7549]
[1739746962774,3.75623,2662.3,2661.7,3.75689]
[1739746963047,2.3749013,2662.6,2662.2,3.7562]
[1739746963353,2.3749013,2662.6,2662.1,3.75642]
[1739746964346,2.3749013,2662.6,2661.7,3.80214099]
[1739746964651,2.3749013,2662.6,2662.2,3.75627]
[1739746965149,2.3749013,2662.6,2662.4,3.75591]
[1739746965511,2.3749013,2662.6,2661.3,3.80214099]
[1739746965750,2.3749013,2662.6,2662.5,3.75586]
[1739746965938,2.3749013,2662.6,2662.4,3.75598]
[1739746966123,3.75505,2663.1,2662.4,3.75598]
[1739746966441,3.75503,2663.1,2661.8,3.7549]
[1739746966645,3.80213091,2663.0,2662.4,3.75592]
[1739746966845,3.75503,2663.1,2662.5,3.75584]
[1739746967044,3.75503,2663.1,2662.4,3.75591]
[1739746967253,0.04694209,2663.0,2662.4,3.75591]
[1739746967411,4.21334721,2663.0,2662.3,3.75606]
[1739746967610,7.96860721,2663.0,2662.4,3.75595]
[1739746967806,4.21334721,2663.0,2662.4,3.75595]
[1739746968020,0.7796,2663.2,2661.8,3.7549]
[1739746968228,3.75428,2663.7,2662.3,3.0]
[1739746968422,3.75428,2663.7,2662.9,3.75518]
[1739746968644,3.75501,2663.2,2662.4,3.756]
[1739746968847,3.75443,2663.6,2662.3,6.75612]
[1739746969041,3.75458,2663.5,2662.8,3.75533]
[1739746969244,0.7796,2664.1,2663.2,3.75483]
[1739746969547,3.75428,2663.7,2663.1,3.75493]
[1739746969717,0.7796,2664.1,2662.6,3.80214099]
[1739746969915,3.75488,2663.2,2662.6,3.75569]
[1739746970135,3.75488,2663.2,2662.6,3.75564]
[1739746970421,3.75439,2663.6,2663.0,3.75516]
[1739746970636,4.15948916,2662.9,2662.8,3.75542]
[1739746970935,7.91482916,2662.9,2662.4,3.75597]
[1739746971161,4.15948916,2662.9,2662.4,3.75592]
[1739746971353,4.15948916,2662.9,2661.9,3.75666]
[1739746971515,4.15948916,2662.9,2661.9,3.0]
[1739746971939,4.15948916,2662.9,2662.4,3.75588]
[1739746972251,7.91480916,2662.9,2662.4,3.75588]
[1739746972546,3.75567,2662.7,2661.3,0.7549]
[1739746972748,3.75567,2662.7,2662.0,3.75645]
[1739746972950,4.15948916,2662.9,2661.5,3.0]
[1739746973252,7.91482916,2662.9,2662.3,3.75607]
[1739746973550,4.15948916,2662.8,2662.3,7.51212]
[1739746973746,4.15948916,2662.8,2662.4,3.75595]
[1739746974048,4.15948916,2662.8,2661.6,4.0559481]
[1739746974250,4.15948916,2662.8,2662.4,3.75597]
[1739746974431,4.15948916,2662.8,2661.8,3.0]
[1739746974620,7.91494916,2662.8,2662.2,3.7562]
[1739746974819,4.15948916,2662.8,2662.3,3.75602]
[1739746975641,4.15948916,2662.8,2662.6,3.75572]
[1739746975843,4.15948916,2662.8,2662.7,3.75558]
[1739746976168,4.15948916,2662.8,2662.6,3.75572]
[1739746976345,4.15948916,2662.8,2662.7,3.75558]
[1739746978697,3.75533,2662.9,2662.4,3.75593]
[1739746978857,3.75533,2662.9,2662.2,3.75622]
[1739746979062,0.04694193,2663.0,2662.0,3.75654]
[1739746979267,0.7796,2663.1,2662.6,3.75565]
[1739746979425,0.7796,2663.1,2662.7,3.75556]
[1739746979620,0.7796,2663.1,2662.6,3.75565]
[1739746979821,0.7796,2663.1,2661.9,3.0]
[1739746980059,0.7796,2663.1,2662.0,3.675677]
[1739746980382,4.16120349,2662.8,2662.6,3.75569]
[1739746980682,4.16120349,2662.8,2662.7,3.75558]
[1739746981369,4.16120349,2662.8,2662.7,6.75558]
[1739746981719,1.3849271,2662.8,2662.7,6.75558]
[1739746981955,0.7776,2664.1,2662.8,3.0]
[1739746982260,3.8000653,2664.5,2663.8,7.50783]
[1739746982261,0.3734,2664.3,2663.8,7.50783]
[1739746982480,0.3734,2664.3,2663.7,3.75407]
[1739746982680,4.12673,2664.3,2663.7,3.75407]
[1739746982866,0.3734,2664.2,2663.4,3.0]
[1739746983073,0.3734,2664.2,2663.7,3.75409]
[1739746983268,0.3734,2664.2,2663.4,6.75449]
[1739746983582,3.75413,2663.8,2662.9,0.7856]
[1739746983788,0.7776,2664.5,2662.9,0.7856]
[1739746984087,3.75322,2664.4,2663.2,3.0]
[1739746984306,0.7776,2664.5,2664.1,3.75348]
[1739746984449,0.3734,2664.8,2663.9,3.75384]
[1739746984781,0.3734,2664.8,2663.6,3.0]
[1739746984989,0.3734,2664.8,2664.3,3.7533]
[1739746985170,0.3734,2664.8,2663.9,3.75383]
[1739746985171,0.046911,2664.8,2663.9,3.75383]
[1739746985498,3.75319,2664.4,2663.8,3.754]
[1739746985780,3.75262,2664.8,2663.3,0.74356844]
[1739746985950,4.5301,2664.9,2664.2,3.75338]
[1739746986346,3.75271,2664.8,2664.0,3.75369]
[1739746986553,3.75271,2664.8,2664.1,3.7536]
[1739746986860,3.75301,2664.6,2663.8,3.754]
[1739746987055,3.75321,2664.4,2663.8,3.754]
[1739746987384,3.75321,2664.4,2663.8,3.75395]
[1739746987595,3.75369,2664.1,2663.2,4.5404]
[1739746987793,3.75376,2664.0,2663.4,3.75455]
[1739746987990,3.75441,2663.6,2662.8,0.7856]
[1739746988156,0.7776,2664.3,2662.9,3.7553]
[1739746988487,3.75404,2663.8,2663.1,3.75493]
[1739746988712,3.75404,2663.8,2662.8,3.7856]
[1739746988713,3.75431,2663.6,2663.0,3.0]
[1739746988843,3.7539,2663.9,2663.2,3.75478]
[1739746989049,3.75383,2664.0,2663.4,3.75457]
[1739746989414,3.75368,2664.1,2663.2,3.75478]
[1739746989563,3.75368,2664.1,2663.5,3.75441]
[1739746989992,0.7776,2664.3,2663.9,3.75381]
[1739746990284,3.75352,2664.2,2663.6,3.75426]
[1739746990450,4.53101,2664.3,2663.6,7.50844]
[1739746990646,0.7776,2664.3,2663.9,3.7538]
[1739746990904,3.75312,2664.5,2663.9,3.75379]
[1739746991083,0.7718,2664.8,2664.2,3.7534]
[1739746991279,3.75306,2664.5,2663.7,3.75405]
[1739746991505,4.976919,2664.8,2663.8,3.75403]
[1739746991653,3.75302,2664.6,2663.8,3.75391]
[1739746991853,3.75319,2664.4,2663.9,3.75387]
[1739746992048,3.7529,2664.6,2663.5,3.0]
[1739746992266,0.7718,2664.8,2663.3,3.0]
[1739746992501,3.75372,2664.1,2663.5,3.75445]
[1739746992695,0.7718,2664.8,2663.4,3.75453]
[1739746992696,3.75389,2664.0,2663.4,3.75453]
[1739746993210,3.75327,2664.4,2663.2,0.8036]
[1739746993414,3.75351,2664.2,2663.6,3.75424]
[1739746993706,3.75351,2664.2,2663.4,3.0]
[1739746994007,3.75351,2664.2,2663.6,3.75418]
[1739746994214,3.75351,2664.2,2663.6,7.5084]
[1739746994508,2.26482345,2664.4,2663.9,3.75382]
[1739746994649,2.26482345,2664.4,2663.8,3.7539]
[1739746994854,6.01805345,2664.4,2663.7,3.75416]
[1739746995057,6.01805345,2664.4,2663.7,7.50825]
[1739746995058,3.75355,2664.2,2663.7,7.50825]
[1739746995373,3.75355,2664.2,2663.7,3.75409]
[1739746995911,6.62454083,2664.4,2663.9,7.50765]
[1739746996068,6.01804345,2664.4,2663.9,3.75379]
[1739746996258,3.75334,2664.3,2663.7,3.75403]
[1739746996574,3.80026033,2664.3,2663.7,7.50813]
[1739746996786,3.75349,2664.2,2663.7,3.75403]
[1739746996987,3.75349,2664.2,2663.7,7.50813]
[1739746997213,2.26482345,2664.1,2663.7,3.75403]
[1739746997550,2.26482345,2664.1,2663.2,3.8036]
[1739746997699,2.26482345,2664.1,2662.7,0.8036]
[1739746997700,0.81872566,2664.0,2662.7,0.8036]
[1739746997876,3.75441,2663.6,2662.8,3.75544]
[1739746998077,3.75462,2663.4,2662.8,3.75544]
[1739746998299,3.75489,2663.2,2662.6,3.75567]
[1739746998606,3.75522,2663.0,2662.4,3.75596]
[1739746998920,0.7718,2663.1,2662.6,3.75572]
[1739746999515,0.7718,2663.1,2662.8,3.75541]
[1739747000023,0.7718,2664.0,2662.4,3.756]
[1739747000309,0.7718,2664.0,2663.5,3.75435]
[1739747000461,0.7718,2664.0,2662.6,3.0]
[1739747000791,2.26482345,2663.1,2663.0,6.75512]
[1739747001500,1.82800445,2663.1,2663.0,6.75512]
[1739747003865,4.45e-06,2663.1,2663.0,6.75512]
[1739747004189,4.45e-06,2663.1,2663.0,7.55872]
[1739747004390,4.45e-06,2663.1,2663.0,9.26310818]
[1739747005506,4.45e-06,2663.1,2663.0,7.55872]
[1739747008883,4.45e-06,2663.1,2663.0,6.75512]
[1739747009401,4.45e-06,2663.1,2662.6,3.75568]
[1739747009608,4.45e-06,2663.1,2662.7,3.75549]
[1739747009810,4.45e-06,2663.1,2662.4,3.75596]
[1739747010102,4.45e-06,2663.1,2662.5,3.75573]
[1739747010510,3.75511445,2663.1,2662.6,3.75565]
[1739747010680,3.75511445,2663.1,2662.5,3.75573]
[1739747010681,3.75517,2663.0,2662.5,3.75573]
[1739747011606,4.45e-06,2663.1,2662.7,3.75555]
[1739747011904,4.45e-06,2663.1,2662.5,4.963847]
[1739747012102,4.45e-06,2663.1,2662.8,7.51071]
[1739747012278,4.45e-06,2663.1,2662.8,3.75534]
[1739747012481,4.45e-06,2663.1,2663.0,3.75516]
[1739747012712,4.55408,2663.5,2663.0,3.75516]
[1739747012905,4.55408,2663.5,2662.8,3.75543]
[1739747013098,0.7996,2663.5,2663.2,3.75478]
[1739747013293,0.7996,2663.5,2663.1,3.75501]
[1739747013901,0.7996,2664.0,2662.9,4.963847]
[1739747014096,0.7996,2664.0,2663.4,3.75446]
[1739747014273,0.7996,2664.0,2663.0,3.75507]
[1739747014476,3.75439,2663.6,2663.0,3.75505]
[1739747014707,0.04693129,2663.9,2662.5,9.482777]
[1739747014708,3.75493,2663.2,2662.6,3.75559]
[1739747014876,7.50995,2663.2,2662.6,3.75559]
[1739747015077,0.7996,2662.9,2662.1,8.720237]
[1739747015378,0.7996,2663.6,2662.4,3.756]
[1739747015594,0.7996,2663.6,2663.2,3.75485]
[1739747015880,0.7996,2663.6,2663.5,3.75445]
[1739747016079,0.7996,2663.6,2663.1,3.75494]
[1739747016277,0.7996,2663.6,2663.1,3.7549]
[1739747016482,0.7996,2663.6,2663.2,3.75479]
[1739747017211,0.7996,2663.6,2663.1,3.7549]
[1739747017387,0.7996,2663.6,2662.8,3.0]
[1739747017592,0.7996,2663.6,2663.1,3.75493]
[1739747018001,4.55394,2663.6,2663.1,3.75493]
[1739747018300,3.75446,2663.5,2663.0,3.75511]
[1739747018500,0.7996,2663.6,2662.5,8.719657]
[1739747018501,0.7996,2663.6,2662.6,6.75572]
[1739747018677,0.7996,2663.6,2663.1,3.75493]
[1739747018878,0.7996,2663.6,2662.7,3.75553]